bitfinex/quotes_SOLUSD_20250912
["timestamp","ask_amount","ask_price","bid_price","bid_amount"]
[1757705098970,0.69,240.13,240.12,33.62566033]
[1757705099167,0.03,240.13,240.12,33.62566033]
[1757705104869,0.03,240.13,240.12,33.60566033]
[1757705105263,0.03,240.13,240.12,1.66566033]
[1757705105470,0.03,240.13,240.12,33.60566033]
[1757705106470,0.03,240.13,240.12,1.66566033]
[1757705106677,0.69,240.13,240.12,33.60566033]
[1757705107673,0.03,240.13,240.12,33.60566033]
[1757705108066,0.03,240.13,240.12,34.26566033]
[1757705108271,0.03,240.13,240.12,51.36583871]
[1757705109973,0.03,240.13,240.12,51.65283871]
[1757705110783,0.03,240.13,240.12,15.54825434]
[1757705110964,0.03,240.13,240.12,47.48825434]
[1757705111363,0.03,240.16,240.13,13.59559401]
[1757705111679,0.03,240.16,240.14,31.94]
[1757705112180,0.03,240.16,240.14,33.60538293]
[1757705113566,0.03,240.16,240.15,31.94]
[1757705114376,0.03,240.16,240.15,33.60538294]
[1757705115260,0.03,240.16,240.15,1.66538294]
[1757705115485,0.03,240.16,240.15,33.58538294]
[1757705117187,0.03,240.16,240.15,1.66538294]
[1757705117390,0.03,240.16,240.15,33.58538294]
[1757705130477,0.03,240.16,240.15,33.87238294]
[1757705133873,0.03,240.16,240.15,51.63204107]
[1757705144003,0.03,240.16,240.15,51.61204107]
[1757705144315,0.03,240.16,240.15,19.71204107]
[1757705144598,0.03,240.16,240.15,51.61204107]
[1757705145482,0.03,240.16,240.15,19.71204107]
[1757705145799,0.03,240.16,240.15,51.61204107]
[1757705149199,0.03,240.16,240.15,1.95238294]
[1757705149399,26.0,240.15,240.13,0.11]
[1757705149591,2.60481621,240.14,240.06,0.3]
[1757705149791,2.60481621,240.12,240.06,0.3]
[1757705149983,2.60481621,240.13,240.06,0.3]
[1757705150181,0.3,240.11,240.06,0.3]
[1757705150502,2.60481621,240.09,240.06,0.3]
[1757705150894,2.90481621,240.09,240.08,15.34]
[1757705151085,7.06992096,240.09,240.08,15.34]
[1757705151285,8.73648347,240.09,240.08,15.34]
[1757705152293,8.73648347,240.09,240.08,32.2]
[1757705153707,6.13166726,240.09,240.08,32.2]
[1757705155103,6.13166726,240.09,240.08,33.0045]
[1757705155989,6.13166726,240.09,240.08,1.1045]
[1757705156190,6.13166726,240.09,240.08,20.0645]
[1757705156783,6.13166726,240.09,240.08,1.1045]
[1757705159903,8.73648347,240.09,240.08,1.1045]
[1757705160790,22.33207748,240.09,240.08,1.1045]
[1757705160991,22.33207748,240.09,240.06,0.3]
[1757705160992,42.20041022,240.07,240.06,1e-08]
[1757705161391,42.50041022,240.07,240.06,1e-08]
[1757705161810,41.56285116,240.07,240.06,1e-08]
[1757705162294,44.16766737,240.07,240.06,1e-08]
[1757705163006,48.33311911,240.07,240.06,1e-08]
[1757705164713,45.7283029,240.07,240.06,1e-08]
[1757705166785,0.03,240.09,240.06,1e-08]
[1757705166985,0.03,240.09,240.07,27.52]
[1757705167185,0.03,240.09,240.08,0.72]
[1757705169100,26.33,240.09,240.04,0.72]
[1757705169406,0.3,240.08,240.04,2.0]
[1757705169805,26.0,240.07,240.04,2.0]
[1757705170492,26.0,240.07,240.03,0.12]
[1757705170697,26.3,240.07,240.03,5.12]
[1757705170902,30.16562526,240.06,240.03,0.12]
[1757705171105,32.77044147,240.06,240.03,0.12]
[1757705171511,45.27278566,240.06,240.03,0.12]
[1757705171707,45.27278566,240.06,240.02,18.74]
[1757705171910,42.66796945,240.06,240.02,18.74]
[1757705172424,42.66796945,240.06,240.02,19.46]
[1757705175117,45.27278566,240.06,240.02,19.46]
[1757705176319,45.27278566,240.06,240.02,19.7696]
[1757705176903,42.66796945,240.06,240.02,19.7696]
[1757705177096,45.27278566,240.06,240.02,19.7696]
[1757705177401,45.27278566,240.06,240.02,1.0296]
[1757705177607,42.66796945,240.06,240.02,1.0296]
[1757705177807,30.16562526,240.06,240.02,1.0296]
[1757705178122,42.66796945,240.06,240.02,1.0296]
[1757705178420,42.66796945,240.06,240.02,0.3096]
[1757705178615,42.66796945,240.06,240.03,0.72]
[1757705179821,26.0,240.05,240.04,0.72]
[1757705180926,26.0,240.06,240.04,0.72]
[1757705181095,26.0,240.06,240.05,0.72]
[1757705181295,15.10559751,240.09,240.05,0.72]
[1757705181296,12.5007813,240.09,240.05,0.72]
[1757705181496,26.0,240.11,240.05,0.72]
[1757705182022,26.0,240.09,240.05,0.72]
[1757705183025,4.16527824,240.08,240.05,0.72]
[1757705183805,4.16527824,240.08,240.03,0.67]
[1757705184018,0.3,240.07,240.04,31.94]
[1757705184221,4.16527824,240.08,240.04,31.94]
[1757705184606,26.3,240.09,240.04,31.94]
[1757705184805,26.3,240.09,240.04,32.61]
[1757705185317,30.46518828,240.09,240.04,32.61]
[1757705187028,40.87795016,240.09,240.04,32.61]
[1757705187231,40.87795016,240.09,240.04,0.67]
[1757705187402,40.87795016,240.09,240.04,32.61]
[1757705188416,40.87795016,240.09,240.04,0.67]
[1757705188624,26.0,240.08,240.04,31.94]
[1757705188815,0.03,240.09,240.04,31.94]
[1757705189016,12.53078129,240.09,240.04,32.61]
[1757705189222,12.53078129,240.09,240.04,31.94]
[1757705189413,12.53078129,240.09,240.05,0.67]
[1757705190325,16.69590617,240.09,240.05,0.67]
[1757705190902,16.99590617,240.09,240.04,31.94]
[1757705191218,16.99590617,240.09,240.04,32.61]
[1757705191728,16.69590617,240.09,240.05,0.67]
[1757705191936,0.03,240.09,240.05,0.67]
[1757705192109,26.0,240.07,240.05,0.67]
[1757705193131,26.0,240.07,240.06,0.67]
[1757705194012,26.0,240.07,240.06,32.61]
[1757705194215,26.0,240.07,240.06,0.67]
[1757705194431,26.0,240.07,240.06,32.61]
[1757705194626,26.03,240.09,240.06,32.61]
[1757705194823,26.03,240.09,240.07,0.67]
[1757705195127,26.03,240.09,240.08,0.67]
[1757705198429,26.03,240.09,240.08,0.9796]
[1757705198430,30.19510475,240.09,240.08,0.9796]
[1757705201032,26.03,240.09,240.08,0.9796]
[1757705204607,26.03,240.09,240.08,0.3096]
[1757705204813,46.69551497,240.09,240.08,0.3096]
[1757705205741,44.09069876,240.09,240.08,0.3096]
[1757705205919,46.69551497,240.09,240.08,0.3096]
[1757705206539,51.61660788,240.09,240.08,0.3096]
[1757705206743,51.61660788,240.09,240.02,0.12]
[1757705206744,17.76156634,240.04,240.02,0.12]
[1757705206940,17.67410759,240.03,240.02,0.12]
[1757705207239,17.97410759,240.03,240.02,0.12]
[1757705208637,13.89559401,240.03,240.02,0.12]
[1757705208827,26.0,240.05,240.02,0.82]
[1757705209338,26.0,240.05,240.03,0.7]
[1757705209646,26.0,240.05,240.04,0.7]
[1757705209831,0.03,240.09,240.04,0.7]
[1757705210024,26.0,240.08,240.04,0.7]
[1757705210224,0.03,240.09,240.04,0.7]
[1757705217048,0.03,240.09,240.04,4.86594503]
[1757705217537,0.03,240.09,240.05,0.69]
[1757705218830,0.03,240.09,240.05,4.85574879]
[1757705219230,0.03,240.09,240.06,0.69]
[1757705224549,26.0,240.04,240.02,0.12]
[1757705224752,17.97410759,240.03,240.02,0.12]
[1757705225752,18.0617399,240.03,240.02,0.12]
[1757705225947,4.16591878,240.05,240.02,0.12]
[1757705226157,4.07851358,240.04,240.02,0.12]
[1757705226356,4.37851358,240.04,240.02,0.12]
[1757705226863,8.24443236,240.05,240.02,0.12]
[1757705227049,26.0,240.03,240.02,0.12]
[1757705227655,30.16614589,240.03,240.02,0.12]
[1757705228452,34.24465947,240.03,240.02,0.12]
[1757705229865,26.0,240.03,240.02,0.12]
[1757705230241,30.07851358,240.03,240.02,0.12]
[1757705230771,34.24465947,240.03,240.02,0.12]
[1757705235175,26.0,240.03,240.02,0.12]
[1757705236052,26.0,240.03,240.02,0.81]
[1757705236673,34.24462255,240.04,240.02,0.81]
[1757705236973,30.16610897,240.04,240.02,0.12]
[1757705240471,34.24462255,240.04,240.02,0.12]
[1757705240644,30.16610897,240.04,240.02,0.12]
[1757705240843,4.07851358,240.03,240.02,0.12]
[1757705241066,4.37851358,240.03,240.02,0.12]
[1757705241478,8.54465947,240.03,240.02,0.12]
[1757705241959,22.14025348,240.03,240.02,0.12]
[1757705243164,42.14025348,240.03,240.02,0.12]
[1757705243481,54.33134979,240.03,240.02,0.12]
[1757705244573,50.25283621,240.03,240.02,0.12]
[1757705244775,54.33134979,240.03,240.02,0.12]
[1757705244961,34.33134979,240.03,240.02,0.12]
[1757705245169,30.25283621,240.03,240.02,0.12]
[1757705245481,34.03134979,240.03,240.02,0.79]
[1757705245662,34.03134979,240.03,240.02,0.12]
[1757705245977,4.16545174,240.07,240.02,0.79]
[1757705246491,26.0,240.06,240.02,0.79]
[1757705246959,0.03,240.08,240.02,0.79]
[1757705246960,4.19528617,240.08,240.02,0.79]
[1757705247358,26.0,240.06,240.02,17.55]
[1757705247556,26.0,240.06,240.03,0.67]
[1757705250681,26.0,240.06,240.04,0.67]
[1757705251976,26.0,240.06,240.02,16.88]
[1757705252179,26.0,240.06,240.03,0.67]
[1757705253890,26.0,240.06,240.04,0.67]
[1757705255171,26.0,240.06,240.02,16.88]
[1757705255172,26.0,240.06,240.02,0.79]
[1757705256282,4.16579879,240.05,240.02,0.79]
[1757705256509,30.16579879,240.05,240.02,0.79]
[1757705257664,26.0,240.06,240.02,0.79]
[1757705259687,26.0,240.06,240.03,0.67]
[1757705259891,26.0,240.06,240.04,0.67]
[1757705260279,26.0,240.06,240.02,0.12]
[1757705260474,26.0,240.06,240.03,0.67]
[1757705260784,26.0,240.06,240.04,0.67]
[1757705262813,30.16566609,240.06,240.02,0.79]
[1757705263185,30.16566609,240.06,240.03,0.67]
[1757705263683,30.16566609,240.06,240.02,0.12]
[1757705263882,30.16566609,240.06,240.04,0.67]
[1757705264277,30.16566609,240.06,240.02,0.12]
[1757705264494,30.16566609,240.06,240.03,0.67]
[1757705264911,26.0,240.05,240.03,0.67]
[1757705267509,26.0,240.06,240.03,0.67]
[1757705267694,26.0,240.06,240.02,0.12]
[1757705267899,26.0,240.06,240.04,0.65]
[1757705269277,30.16576409,240.06,240.04,0.65]
[1757705271003,30.16576409,240.06,240.02,24.2]
[1757705271503,30.16576409,240.06,240.03,0.65]
[1757705275310,26.0,240.04,240.02,0.12]
[1757705275697,26.0,240.04,240.02,0.8]
[1757705276900,30.16605601,240.04,240.03,0.12]
[1757705278809,30.46605601,240.04,240.03,0.12]
[1757705278984,30.16605601,240.04,240.03,0.12]
[1757705282402,30.46605601,240.04,240.03,0.12]
[1757705282606,33.07544489,240.04,240.03,0.12]
[1757705283336,46.6710389,240.04,240.03,0.12]
[1757705283503,46.6710389,240.04,240.02,0.12]
[1757705283504,16.20498289,240.03,240.02,1e-08]
[1757705284055,16.20498289,240.03,240.01,0.12]
[1757705284056,19.28556349,240.03,240.01,0.12]
[1757705284209,19.85044575,240.02,240.01,0.12]
[1757705284402,18.98556349,240.02,240.01,0.12]
[1757705284613,19.28556349,240.02,240.01,0.12]
[1757705285330,20.84249408,240.02,240.01,0.12]
[1757705285522,23.45188296,240.02,240.01,0.12]
[1757705286130,26.92242895,240.02,240.01,0.12]
[1757705286334,24.31304007,240.02,240.01,0.12]
[1757705286548,26.92242895,240.02,240.01,0.12]
[1757705291544,23.45188296,240.02,240.01,0.12]
[1757705294424,33.88943848,240.02,240.01,0.12]
[1757705295625,65.88943848,240.02,240.01,0.12]
[1757705297231,23.15188296,240.02,240.01,0.12]
[1757705299440,23.14278917,240.02,240.01,0.12]
[1757705304627,26.05217805,240.02,240.01,0.12]
[1757705304933,23.14278917,240.02,240.01,0.12]
[1757705305133,52.35130236,240.02,240.01,0.12]
[1757705305333,55.12278917,240.02,240.01,0.12]
[1757705305927,55.10278917,240.02,240.01,0.12]
[1757705306329,52.49340029,240.02,240.01,0.12]
[1757705306567,23.14278917,240.02,240.01,0.12]
[1757705306758,52.33130236,240.02,240.01,0.12]
[1757705306936,55.10278917,240.02,240.01,0.12]
[1757705308328,23.14278917,240.02,240.01,0.12]
[1757705308528,52.35130236,240.02,240.01,0.12]
[1757705308728,55.12278917,240.02,240.01,0.12]
[1757705309630,55.10278917,240.02,240.01,0.12]
[1757705309827,23.14278917,240.02,240.01,0.12]
[1757705310052,52.33130236,240.02,240.01,0.12]
[1757705310246,55.10278917,240.02,240.01,0.12]
[1757705311334,23.14278917,240.02,240.01,0.12]
[1757705311534,52.33130236,240.02,240.01,0.12]
[1757705311832,55.10278917,240.02,240.01,0.12]
[1757705312458,57.74217805,240.02,240.01,0.12]
[1757705314550,13.59559401,240.01,240.0,0.12]
[1757705314751,16.36708082,240.01,240.0,0.12]
[1757705315346,19.83143933,240.01,240.0,0.12]
[1757705315652,25.66567614,240.01,240.0,0.12]
[1757705318137,22.20131763,240.01,240.0,0.82]
[1757705318539,22.0392197,240.01,240.0,0.82]
[1757705320462,24.81070651,240.01,240.0,0.82]
[1757705323052,1.66774375,240.01,240.0,0.82]
[1757705323258,0.03,240.02,240.0,0.82]
[1757705324082,26.0,240.01,240.0,0.82]
[1757705324264,28.77148681,240.01,240.0,0.82]
[1757705324765,2.80148681,240.02,240.0,0.82]
[1757705324968,0.03,240.02,240.0,0.82]
[1757705330073,0.03,240.04,240.02,26.0]
[1757705330573,0.03,240.04,240.03,0.66]
[1757705331562,0.03,240.04,240.03,2.32628481]
[1757705333852,0.03,240.04,240.03,32.64]
[1757705335169,0.03,240.04,240.03,32.66]
[1757705337387,0.03,240.04,240.03,32.91]
[1757705338851,0.03,240.04,240.03,0.25]
[1757705339052,26.03,240.04,240.03,0.25]
[1757705339779,30.19597233,240.04,240.03,0.25]
[1757705341477,26.03,240.04,240.03,0.96]
[1757705342388,0.03,240.04,240.03,0.96]
[1757705348378,0.03,240.04,240.03,0.25]
[1757705348557,0.03,240.04,240.03,19.07]
[1757705348761,26.03,240.04,240.03,19.07]
[1757705348966,30.19597233,240.04,240.03,19.07]
[1757705349981,0.03,240.04,240.03,19.78]
[1757705352364,0.03,240.04,240.03,32.92]
[1757705356470,0.03,240.04,240.03,34.58635422]
[1757705363891,0.03,240.04,240.03,32.92]
[1757705364788,0.03,240.04,240.03,0.96]
[1757705364978,0.03,240.04,240.03,32.9]
[1757705370781,0.03,240.04,240.03,0.96]
[1757705370987,0.03,240.04,240.03,32.9]
[1757705373103,0.03,240.05,240.03,32.9]
[1757705373104,0.03,240.05,240.03,37.48276047]
[1757705373274,0.03,240.07,240.04,0.69]
[1757705373600,0.03,240.07,240.05,31.94]
[1757705373802,0.03,240.07,240.05,33.606146]
[1757705374003,0.03,240.07,240.06,0.69]
[1757705374184,0.03,240.07,240.06,32.65]
[1757705374692,0.03,240.07,240.06,0.69]
[1757705374896,0.03,240.07,240.06,32.65]
[1757705376580,0.03,240.07,240.06,0.69]
[1757705376801,0.03,240.07,240.06,32.65]
[1757705376998,0.03,240.07,240.06,0.69]
[1757705377307,0.03,240.07,240.06,32.65]
[1757705381009,0.03,240.07,240.05,0.69]
[1757705381208,0.03,240.07,240.06,31.94]
[1757705381593,0.03,240.07,240.06,32.63]
[1757705386313,0.03,240.07,240.06,31.98]
[1757705386716,0.03,240.07,240.04,0.66]
[1757705387032,0.03,240.07,240.06,32.04]
[1757705387322,0.03,240.07,240.03,0.12]
[1757705387492,0.03,240.07,240.04,32.04]
[1757705388008,0.3,240.06,240.03,0.12]
[1757705388393,0.3,240.06,240.04,32.04]
[1757705389213,2.63981583,240.07,240.04,32.04]
[1757705389408,2.93981583,240.07,240.04,32.04]
[1757705390705,0.33,240.07,240.04,32.04]
[1757705391627,0.03,240.07,240.04,32.04]
[1757705392013,2.63981583,240.07,240.04,32.04]
[1757705393323,2.63981583,240.07,240.04,32.95]
[1757705394034,2.63981583,240.07,240.04,32.29]
[1757705395012,2.63981583,240.07,240.04,33.01]
[1757705396304,5.41670202,240.07,240.04,33.01]
[1757705396806,5.41670202,240.07,240.05,1.13657987]
[1757705396807,0.03,240.07,240.05,1.13657987]
[1757705397012,0.03,240.09,240.07,4.16545174]
[1757705397205,0.03,240.09,240.08,32.02]
[1757705397408,0.03,240.09,240.08,32.74]
[1757705399319,0.03,240.09,240.08,50.91740007]
[1757705400312,0.03,240.09,240.08,50.50087225]
[1757705401323,0.03,240.09,240.08,50.91740007]
[1757705401932,0.03,240.1,240.09,13.59559401]
[1757705402139,0.03,240.1,240.09,14.31559401]
[1757705402531,0.03,240.1,240.09,18.48069876]
[1757705403037,0.03,240.1,240.09,4.88510475]
[1757705403337,0.03,240.1,240.09,62.90510475]
[1757705403941,0.03,240.1,240.09,30.88510475]
[1757705404120,0.03,240.1,240.09,62.90510475]
[1757705405050,0.03,240.1,240.09,30.88510475]
[1757705405254,0.03,240.1,240.09,62.90510475]
[1757705406120,0.03,240.1,240.09,30.88510475]
[1757705406322,0.03,240.1,240.09,62.90510475]
[1757705408846,0.03,240.1,240.09,30.88510475]
[1757705409060,0.03,240.1,240.09,62.88510475]
[1757705409242,0.03,240.1,240.09,32.0]
[1757705409548,0.03,240.1,240.09,32.72]
[1757705412937,0.03,240.1,240.08,26.0]
[1757705413139,0.03,240.1,240.09,32.0]
[1757705413341,0.03,240.1,240.07,0.2098999]
[1757705413531,0.03,240.1,240.08,32.0]
[1757705415255,0.03,240.1,240.09,32.0]
[1757705415719,0.39,240.1,240.07,0.2098999]
[1757705415924,0.39,240.1,240.08,32.0]
[1757705416340,0.03,240.1,240.08,32.0]
[1757705417637,0.03,240.1,240.09,0.25]
[1757705419938,0.03,240.1,240.09,32.25]
[1757705421623,0.03,240.1,240.09,0.25]
[1757705421850,0.39,240.1,240.09,32.23]
[1757705422153,2.99981583,240.1,240.09,0.25]
[1757705422447,2.99981583,240.1,240.09,25.23]
[1757705423247,28.99981583,240.1,240.09,0.25]
[1757705423455,28.99981583,240.1,240.09,10.41]
[1757705423641,31.78527262,240.1,240.09,10.41]
[1757705423949,35.95020389,240.1,240.09,10.41]
[1757705424163,49.5457979,240.1,240.09,0.25]
[1757705424355,46.93598207,240.1,240.09,0.25]
[1757705424557,49.5457979,240.1,240.09,0.25]
[1757705427544,23.5457979,240.1,240.09,0.25]
[1757705427743,49.5457979,240.1,240.09,0.25]
[1757705427944,23.5457979,240.1,240.09,0.25]
[1757705428153,39.59559401,240.09,240.08,0.12]
[1757705428350,39.59559401,240.09,240.08,1e-08]
[1757705428351,44.99086663,240.09,240.08,1e-08]
[1757705428643,45.35086663,240.09,240.08,1e-08]
[1757705429052,45.35086663,240.09,240.07,1e-08]
[1757705429363,2.78545679,240.08,240.07,1e-08]
[1757705429569,18.99086663,240.08,240.07,1e-08]
[1757705429764,16.56540984,240.08,240.07,1e-08]
[1757705429969,20.73068808,240.08,240.07,1e-08]
[1757705430441,20.73068808,240.08,240.04,0.12]
[1757705430442,42.20540984,240.05,240.04,0.12]
[1757705430642,44.99086663,240.05,240.04,0.12]
[1757705430852,45.35086663,240.05,240.04,0.12]
[1757705432173,49.51666542,240.05,240.04,0.12]
[1757705435965,59.93116239,240.05,240.0,0.12]
[1757705436263,39.59559401,240.01,240.0,0.12]
[1757705436464,47.60068246,240.01,240.0,1e-08]
[1757705436678,47.96068246,240.01,240.0,1e-08]
[1757705437568,49.62842621,240.01,240.0,1e-08]
[1757705438144,53.79491927,240.01,240.0,1e-08]
[1757705439372,18.81522567,240.0,239.98,0.12]
[1757705439570,19.17522567,240.0,239.98,0.12]
[1757705440479,23.34189233,240.0,239.98,0.12]
[1757705441170,22.98189233,240.0,239.98,0.12]
[1757705442567,23.34189233,240.0,239.98,0.12]
[1757705443358,22.98189233,240.0,239.98,0.12]
[1757705444148,25.00963608,240.0,239.98,0.12]
[1757705444369,24.64963608,240.0,239.98,0.12]
[1757705444970,25.00963608,240.0,239.98,0.12]
[1757705446761,16.20540984,239.96,239.95,0.1]
[1757705446966,16.20540984,239.96,239.95,0.82]
[1757705448446,30.16380237,239.96,239.95,0.82]
[1757705448647,34.33116359,239.96,239.95,0.82]
[1757705452051,34.33116359,239.96,239.95,0.1]
[1757705453875,34.33116359,239.96,239.95,0.75]
[1757705455658,34.33116359,239.96,239.95,0.1]
[1757705457280,37.09746317,239.96,239.95,0.1]
[1757705457491,37.09746317,239.96,239.95,0.75]
[1757705459690,37.09746317,239.96,239.95,0.1]
[1757705460894,37.45746317,239.96,239.95,0.1]
[1757705461093,43.67835512,239.93,239.92,0.12]
[1757705461398,78.4246547,239.93,239.92,0.12]
[1757705461695,13.59559401,239.92,239.9,0.12]
[1757705461883,20.4446547,239.92,239.9,0.12]
[1757705462068,20.8046547,239.92,239.9,0.12]
[1757705462478,22.47309408,239.92,239.9,0.12]
[1757705462868,26.64115009,239.92,239.9,0.12]
[1757705463064,29.89920706,239.92,239.9,0.12]
[1757705463795,29.53920706,239.92,239.9,0.12]
[1757705464172,26.77290748,239.92,239.9,0.12]
[1757705464364,55.49485051,239.92,239.9,0.12]
[1757705464565,58.26115009,239.92,239.9,0.12]
[1757705464789,26.28115009,239.92,239.9,0.12]
[1757705464981,55.49485051,239.92,239.9,0.12]
[1757705465294,58.26115009,239.92,239.9,0.12]
[1757705466171,61.64562833,239.92,239.9,0.12]
[1757705468162,65.10998684,239.92,239.9,0.12]
[1757705468572,25.66274749,239.92,239.91,0.75]
[1757705468767,16.36189359,239.92,239.91,0.75]
[1757705468971,13.59559401,239.92,239.91,0.75]
[1757705469395,39.59559401,239.92,239.91,0.75]
[1757705469692,46.4446547,239.92,239.91,0.75]
[1757705469899,46.4446547,239.92,239.91,0.1]
[1757705470075,46.4446547,239.92,239.91,0.75]
[1757705470471,50.61271071,239.92,239.91,0.1]
[1757705470891,54.07706922,239.92,239.91,0.1]
[1757705471478,50.61271071,239.92,239.91,0.1]
[1757705471676,52.28094135,239.92,239.91,0.22]
[1757705472081,84.62094135,239.92,239.91,0.22]
[1757705472390,84.26094135,239.92,239.91,0.22]
[1757705472692,84.62094135,239.92,239.91,0.22]
[1757705472876,84.26094135,239.92,239.91,0.22]
[1757705473193,52.28094135,239.92,239.91,0.22]
[1757705473372,16.36189359,239.92,239.91,0.87]
[1757705473697,20.4446547,239.92,239.91,0.87]
[1757705473994,16.36189359,239.92,239.91,0.87]
[1757705474790,28.76629958,239.92,239.91,0.87]
[1757705476689,2.76629958,239.94,239.92,0.65]
[1757705476997,26.0,239.94,239.92,0.65]
[1757705477169,28.76629958,239.94,239.92,0.65]
[1757705477372,2.76629958,239.93,239.92,0.65]
[1757705477807,26.0,239.93,239.92,0.65]
[1757705478103,28.76629958,239.93,239.92,0.65]
[1757705478511,26.0,239.93,239.92,0.65]
[1757705478972,28.76629958,239.93,239.92,0.65]
[1757705479176,2.76629958,239.93,239.92,0.65]
[1757705479611,2.76629958,239.95,239.92,0.65]
[1757705480280,26.03,239.96,239.92,0.65]
[1757705480693,28.79629958,239.96,239.92,0.65]
[1757705480899,2.76629958,239.95,239.92,0.65]
[1757705481276,26.03,239.96,239.92,0.65]
[1757705481471,0.03,239.96,239.92,0.65]
[1757705481682,0.03,239.96,239.92,4.81798833]
[1757705482084,0.03,239.96,239.93,0.65]
[1757705482910,0.03,239.96,239.94,4.16770859]
[1757705483274,0.03,239.96,239.95,0.65]
[1757705485903,0.03,239.96,239.95,4.8175349]
[1757705486081,0.03,239.96,239.95,0.65]
[1757705486404,0.03,239.96,239.95,0.68]
[1757705487899,0.03,239.96,239.95,5.26428839]
[1757705488106,0.03,239.99,239.95,5.26428839]
[1757705488402,0.03,239.99,239.96,0.68]
[1757705489279,0.03,239.99,239.98,39.59559401]
[1757705489502,0.03,240.01,239.98,71.59559401]
[1757705489690,0.03,240.01,239.99,1.09668402]
[1757705490094,0.03,240.01,240.0,0.68]
[1757705491182,0.03,240.01,240.0,4.84666666]
[1757705491383,0.03,240.05,240.0,4.84666666]
[1757705491606,0.03,240.05,240.02,39.59559401]
[1757705491902,0.03,240.05,240.03,0.41661458]
[1757705492104,0.03,240.05,240.04,32.0]
[1757705492280,0.03,240.1,240.04,32.0]
[1757705492483,0.03,240.1,240.05,1.09657987]
[1757705492688,0.03,240.06,240.05,1.09657987]
[1757705493097,0.03,240.1,240.05,14.69217388]
[1757705493282,0.03,240.1,240.06,4.84562526]
[1757705493483,0.03,240.1,240.07,0.41654517]
[1757705493785,0.03,240.1,240.07,1.09654517]
[1757705494285,0.03,240.1,240.08,0.68]
[1757705494704,0.03,240.1,240.09,32.0]
[1757705495203,0.03,240.1,240.09,32.68]
[1757705499492,0.03,240.1,240.09,36.84510475]
[1757705500095,0.03,240.1,240.09,32.68]
[1757705500301,0.03,240.1,240.09,36.84510475]
[1757705501223,0.03,240.13,240.09,36.84510475]
[1757705501528,0.03,240.13,240.1,14.69208713]
[1757705502306,0.03,240.13,240.11,0.68]
[1757705503299,0.03,240.13,240.11,4.84475781]
[1757705504319,0.03,240.13,240.11,18.44035182]
[1757705506422,0.03,240.13,240.11,58.72]
[1757705507215,0.03,240.13,240.11,32.72]
[1757705507498,0.03,240.13,240.09,0.66]
[1757705507697,0.03,240.13,240.1,32.04]
[1757705508109,0.03,240.13,240.1,32.7]
[1757705510402,0.03,240.13,240.1,32.73]
[1757705512401,0.03,240.13,240.1,0.69]
[1757705512615,0.39,240.12,240.11,32.02]
[1757705512825,0.03,240.12,240.11,32.02]
[1757705515435,0.03,240.12,240.1,0.03]